bitfinex/quotes_ETHUSD_20260130
["timestamp","ask_amount","ask_price","bid_price","bid_amount"]
[1769815134474,13.39573563,2706.1,2705.3,14.76951943]
[1769815134679,14.31958382,2706.1,2705.3,15.31788942]
[1769815135196,14.31958382,2706.1,2705.3,0.54836999]
[1769815135403,14.31958382,2706.1,2705.2,0.92413357]
[1769815137004,14.31958382,2706.1,2705.1,17.54212681]
[1769815139502,0.001,2705.9,2705.1,17.54212681]
[1769815142115,13.39673563,2705.9,2705.1,17.54212681]
[1769815143717,13.39673563,2705.9,2705.2,13.84540751]
[1769815143891,0.001,2705.9,2705.2,13.84540751]
[1769815144593,0.001,2705.9,2705.3,0.92411192]
[1769815145020,0.001,2705.9,2705.3,14.76951943]
[1769815147816,14.67036012,2706.5,2705.5,12.6244212]
[1769815148015,14.67036012,2706.5,2705.7,12.6244212]
[1769815150209,14.67036012,2706.5,2705.7,13.54837185]
[1769815151615,14.67036012,2706.5,2705.7,0.92395065]
[1769815152395,12.97363833,2706.3,2705.5,0.92404361]
[1769815152599,12.97263833,2706.1,2705.5,0.92404361]
[1769815153035,12.97263833,2706.1,2705.4,0.0011]
[1769815154419,12.97263833,2705.9,2705.4,0.0011]
[1769815156233,12.97263833,2705.7,2704.9,0.92422768]
[1769815156437,14.34730216,2705.6,2704.9,0.92422768]
[1769815157003,0.92404361,2705.5,2704.8,3.69709722]
[1769815157828,2.29869944,2705.6,2704.9,12.6244212]
[1769815157998,15.27133777,2705.6,2704.8,3.69709722]
[1769815158201,0.92403561,2705.6,2704.9,12.6244212]
[1769815159313,0.92400005,2705.7,2705.0,13.54863561]
[1769815165039,0.92400005,2705.7,2705.2,0.0011]
[1769815165241,0.001,2705.5,2705.2,0.0011]
[1769815168742,12.97363833,2705.5,2704.4,12.6244212]
[1769815169053,12.97363833,2705.5,2704.4,0.92439683]
[1769815169217,12.97263833,2705.3,2704.4,0.92439683]
[1769815170313,0.92414608,2705.2,2704.3,16.32332878]
[1769815170508,13.89678441,2705.2,2704.3,3.69890758]
[1769815170813,13.89678441,2705.2,2704.4,12.6244212]
[1769815172850,13.89678441,2705.2,2704.5,0.92438528]
[1769815173007,1.75933049,2705.1,2704.5,0.92438528]
[1769815174345,14.73196882,2705.1,2704.3,0.0011]
[1769815174525,14.73196882,2705.1,2704.3,0.9255316]
[1769815175234,14.73196882,2705.1,2704.3,12.6255212]
[1769815175235,0.92421441,2705.0,2704.3,12.6255212]
[1769815177856,0.92421441,2705.0,2704.4,0.92441946]
[1769815178038,2.93689245,2705.0,2704.4,0.92441946]
[1769815178547,2.93689245,2705.0,2704.5,0.0011]
[1769815178717,2.01267804,2705.0,2704.5,0.0011]
[1769815184059,2.01267804,2705.0,2704.3,0.0011]
[1769815184060,14.31960995,2704.9,2704.3,0.0011]
[1769815187258,0.774,2704.8,2704.3,12.71821562]
[1769815188030,14.31952639,2705.2,2704.3,12.71821562]
[1769815188233,0.774,2705.1,2704.4,13.64153508]
[1769815188753,0.774,2705.1,2704.4,12.71711562]
[1769815189055,14.16936137,2705.1,2704.3,13.64266014]
[1769815189262,14.16936137,2705.1,2704.3,12.71821562]
[1769815189624,14.16936137,2705.1,2704.3,13.64266679]
[1769815191160,0.92421441,2705.0,2704.5,0.0011]
[1769815191339,1.46482704,2704.9,2704.5,0.0011]
[1769815201644,2.38907606,2704.9,2704.5,0.0011]
[1769815202589,2.39007606,2704.9,2704.5,0.0011]
[1769815202998,1.46582704,2704.9,2704.5,0.0011]
[1769815203199,0.001,2704.9,2704.5,0.0011]
[1769815203679,0.001,2704.9,2704.5,13.6426009]
[1769815203858,14.31929487,2705.9,2704.6,12.71711562]
[1769815204056,14.31929487,2705.9,2704.8,12.71711562]
[1769815204057,0.774,2705.8,2704.8,12.71711562]
[1769815204797,14.16936137,2705.8,2704.8,12.71711562]
[1769815206393,0.92397531,2705.7,2704.9,0.92424858]
[1769815206688,0.92397531,2705.7,2704.9,14.76633523]
[1769815206885,0.92397531,2705.7,2705.0,13.84208665]
[1769815207089,1.69796703,2705.8,2705.0,13.84208665]
[1769815208392,1.69796703,2705.8,2705.1,0.92418025]
[1769815214427,1.69796703,2705.8,2705.1,14.7662669]
[1769815214713,0.774,2705.8,2705.1,14.7662669]
[1769815214914,0.774,2705.8,2705.2,13.84208665]
[1769815215214,0.001,2705.6,2705.2,13.84208665]
[1769815217587,0.001,2705.6,2705.3,0.92411192]
[1769815221375,0.001,2705.6,2705.3,13.84208665]
[1769815223312,0.001,2705.6,2705.0,13.84208665]
[1769815223531,0.001,2705.6,2705.1,14.7662669]
[1769815226902,0.001,2705.4,2705.1,14.7662669]
[1769815227633,13.07229105,2705.4,2704.8,0.92426642]
[1769815227831,15.303703,2705.4,2704.6,3.6973066]
[1769815228636,14.37962016,2705.4,2704.6,3.6973066]
[1769815231808,14.37962016,2705.4,2704.6,13.84208665]
[1769815232114,0.001,2705.4,2704.6,13.84208665]
[1769815232321,0.001,2705.4,2704.7,13.84208665]
[1769815234143,0.001,2705.4,2704.8,0.92428275]
[1769815236457,0.001,2705.4,2704.9,13.98574391]
[1769815238261,0.001,2705.4,2704.8,0.92428275]
[1769815239459,0.001,2705.4,2704.9,13.65952923]
[1769815241370,0.001,2705.4,2705.0,0.92421441]
[1769815243156,13.27806481,2705.4,2704.8,0.92427796]
[1769815243463,14.20214487,2705.4,2704.6,0.9243511]
[1769815243656,15.53005135,2705.4,2704.6,0.9243511]
[1769815247169,15.53005135,2705.4,2704.5,0.0011]
[1769815249660,15.53005135,2705.4,2704.8,0.0011]
[1769815249942,13.27806481,2705.2,2704.8,0.0011]
[1769815250266,1.32780648,2705.1,2704.8,0.0011]
[1769815251951,2.2520087,2705.1,2704.8,0.0011]
[1769815253586,15.52907351,2705.1,2704.8,0.0011]
[1769815254752,15.52907351,2705.1,2704.5,0.0011]
[1769815255773,15.52907351,2705.1,2704.3,0.0011]
[1769815256080,13.27706481,2704.9,2704.3,0.0011]
[1769815256247,2.000078,2705.0,2704.3,0.0011]
[1769815256444,15.52907351,2705.1,2704.4,0.9244178]
[1769815256681,2.2520087,2705.1,2704.4,13.65952923]
[1769815256851,0.774,2705.0,2704.4,13.65952923]
[1769815259462,1.69822069,2705.0,2704.4,14.58394794]
[1769815260390,1.69822069,2705.0,2704.4,0.92441871]
[1769815262878,1.69822069,2705.0,2704.6,0.0011]
[1769815274116,0.774,2705.0,2704.6,0.0011]
[1769815274317,1.31358344,2705.0,2704.6,0.0011]
[1769815275714,0.001,2704.8,2704.6,0.0011]
[1769815281911,0.774,2704.9,2704.6,0.0011]
[1769815282114,0.774,2704.9,2704.6,13.49470998]
[1769815284254,0.001,2705.2,2704.6,14.41903781]
[1769815287150,0.001,2705.2,2704.8,0.0011]
[1769815293072,12.86892656,2705.2,2704.8,0.0011]
[1769815299579,0.001,2705.0,2704.8,0.0011]
[1769815299984,0.001,2705.0,2704.6,0.0011]
[1769815300252,0.001,2705.0,2704.5,0.0011]
[1769815300253,13.44157207,2705.0,2704.5,0.0011]
[1769815300564,1.34415721,2704.9,2704.5,0.0011]
[1769815301092,2.11815721,2704.9,2704.5,0.0011]
[1769815302286,3.04241008,2704.9,2704.5,0.0011]
[1769815302966,16.48298215,2704.9,2704.5,0.0011]
[1769815303296,16.48298215,2704.9,2704.3,0.0011]
[1769815303495,15.45865708,2704.8,2704.3,0.0011]
[1769815304078,0.92431692,2704.7,2704.3,0.0011]
[1769815304297,14.36488899,2704.7,2704.3,0.0011]
[1769815308605,14.36488899,2704.7,2704.0,0.0011]
[1769815312110,14.36488899,2704.7,2704.2,0.0011]
[1769815312295,13.44057207,2704.5,2704.0,0.0011]
[1769815312488,13.44057207,2704.3,2704.0,0.0011]
[1769815312691,14.3650599,2704.2,2703.5,0.0011]
[1769815312997,16.24876102,2704.2,2703.5,0.0011]
[1769815313380,16.24876102,2704.2,2703.5,13.24147736]
[1769815313582,2.80818895,2704.2,2703.5,13.24147736]
[1769815316089,2.80818895,2704.2,2703.5,14.1661993]
[1769815318837,2.80818895,2704.2,2703.5,13.24147736]
[1769815319013,0.65061403,2704.1,2703.5,13.24147736]
[1769815321620,0.92455621,2704.0,2703.5,13.24147736]
[1769815321945,1.69854779,2704.1,2703.5,14.16619896]
[1769815325134,1.69854779,2704.1,2703.7,0.0011]
[1769815325334,2.23820476,2704.1,2703.7,0.0011]
[1769815325736,2.23820476,2704.1,2703.3,0.0011]
[1769815325737,15.67877683,2704.1,2703.3,0.0011]
[1769815325934,13.44057207,2703.9,2703.3,0.0011]
[1769815327522,0.9246246,2703.8,2703.3,0.0011]
[1769815327746,1.43651967,2703.7,2703.3,0.0011]
[1769815329555,2.36118489,2703.7,2703.3,0.0011]
[1769815330259,1.43651967,2703.7,2703.3,0.0011]
[1769815330560,0.92451047,2704.2,2703.3,13.96033505]
[1769815331664,14.49839135,2704.2,2703.3,14.88512064]
[1769815331835,1.89702097,2704.1,2703.3,14.88512064]
[1769815332362,15.47090185,2704.1,2703.3,14.88512064]
[1769815334053,0.92455621,2704.0,2703.3,14.88512064]
[1769815337145,0.92455621,2704.0,2703.5,0.0011]
[1769815338060,0.001,2703.9,2703.5,0.0011]
[1769815341371,2.01045961,2703.9,2703.5,0.0011]
[1769815345878,2.01045961,2703.9,2703.5,13.96033505]
[1769815346072,0.001,2703.9,2703.5,13.96033505]
[1769815347181,0.001,2703.9,2703.5,0.0011]
[1769815347386,14.49948301,2703.9,2703.5,0.0011]
[1769815348451,13.57488088,2703.9,2703.5,0.0011]
[1769815348651,0.001,2703.9,2703.5,0.0011]
[1769815350245,0.001,2703.7,2703.5,0.0011]
[1769815356067,0.001,2703.7,2703.3,0.0011]
[1769815360768,0.001,2703.7,2703.3,13.0205731]
[1769815361688,0.001,2703.7,2703.3,13.94534601]
[1769815362016,0.001,2703.7,2703.5,0.0011]
[1769815374392,15.25064361,2703.7,2703.2,0.0011]
[1769815374591,13.58123097,2703.6,2702.9,0.0011]
[1769815374801,15.65421463,2703.5,2702.9,0.0011]
[1769815376226,0.92476141,2703.4,2702.9,0.0011]
[1769815377116,16.57896549,2703.5,2702.9,0.0011]
[1769815377928,13.58123097,2703.3,2702.5,13.94452466]
[1769815378107,2.02777909,2703.4,2702.7,13.0194731]
[1769815378313,0.775,2703.3,2702.7,13.94444527]
[1769815378895,17.28001628,2703.6,2702.7,13.94444527]
[1769815379101,0.775,2703.5,2702.7,13.94444527]
[1769815381533,0.92476141,2703.4,2702.7,13.94444527]
[1769815381703,2.82273918,2703.4,2702.7,13.94444527]
[1769815385040,2.82273918,2703.4,2702.9,0.0011]
[1769815387514,2.82275063,2703.4,2702.9,0.0011]
[1769815397259,0.001,2703.2,2702.9,0.0011]
[1769815407628,13.90136852,2703.2,2702.6,0.0011]
[1769815407960,15.46048509,2703.1,2702.6,0.0011]
[1769815409057,15.46048509,2703.1,2702.8,0.0011]
[1769815409440,0.001,2703.0,2702.8,0.0011]
[1769815414661,13.90136852,2703.0,2702.5,0.0011]
[1769815414844,13.90036852,2702.8,2702.5,0.0011]
[1769815415355,1.56012414,2702.9,2702.5,0.0011]
[1769815416457,2.4850826,2702.9,2702.5,0.0011]
[1769815416766,15.97356406,2702.9,2702.5,0.0011]
[1769815422366,0.001,2702.7,2702.5,0.0011]
[1769815422570,0.775,2702.6,2702.5,0.0011]
[1769815434574,0.776,2702.6,2702.5,0.0011]
[1769815441097,15.01574602,2702.6,2701.8,0.92528586]
[1769815441261,1.5016746,2702.5,2701.8,0.92528586]
[1769815441575,14.81638547,2702.5,2701.8,0.92528586]
[1769815443678,15.74148292,2702.5,2701.8,0.92528586]
[1769815445792,15.74148292,2702.5,2701.8,13.41516511]
[1769815446196,15.74148292,2702.5,2702.0,0.0011]
[1769815446397,2.02176414,2702.4,2702.0,0.0011]
[1769815454386,0.92509745,2702.5,2702.0,0.0011]
[1769815458883,0.001,2702.3,2702.0,0.0011]
[1769815472078,0.001,2702.3,2702.2,0.0011]
[1769815492977,14.72383608,2702.5,2702.2,0.0011]
[1769815494978,0.82609745,2702.5,2702.2,0.0011]
[1769815495166,0.82609745,2702.5,2702.4,0.0011]
[1769815495368,2.79619534,2702.5,2702.1,0.0011]
[1769815501787,1.97009789,2702.5,2702.1,0.0011]
[1769815501987,2.89516966,2702.5,2702.1,0.0011]
[1769815502680,0.92507177,2702.5,2702.1,0.0011]
[1769815502982,1.70105997,2702.6,2702.1,0.0011]
[1769815503202,1.70105997,2702.6,2702.1,12.80344934]
[1769815507186,1.70105997,2702.6,2702.3,0.0011]
[1769815519399,0.001,2702.4,2702.3,0.0011]
[1769815522309,0.001,2702.6,2702.3,12.79829264]
[1769815522497,0.501,2702.7,2702.4,12.79719264]
[1769815522498,0.4933,2702.7,2702.4,12.79719264]
[1769815522701,0.001,2703.0,2702.4,12.79719264]
[1769815522915,0.001,2703.5,2702.7,12.79719264]
[1769815523207,0.001,2703.5,2702.4,12.79719264]
[1769815523606,0.001,2703.5,2702.5,0.92506938]
[1769815523801,0.001,2703.5,2702.6,12.79719264]
[1769815526985,0.001,2703.5,2702.8,12.79719264]
[1769815529495,0.001,2703.5,2703.0,12.79719264]
[1769815531515,0.001,2703.3,2703.0,12.79719264]
[1769815532515,0.001,2703.3,2703.0,13.72206925]
[1769815537724,0.001,2703.3,2702.9,0.92491239]
[1769815538421,0.001,2703.3,2703.0,0.92489448]
[1769815539918,12.89359646,2703.3,2702.5,0.0011]
[1769815540221,12.89259646,2703.1,2702.5,0.0011]
[1769815540406,12.89259646,2703.1,2702.5,0.92616172]
[1769815541917,13.8174661,2703.1,2702.5,0.0011]
[1769815543318,13.8174661,2703.1,2703.0,0.0011]
[1769815543319,12.89259646,2703.1,2703.0,0.0011]
[1769815545535,1.28935965,2703.2,2703.0,0.0011]
[1769815545833,13.81841504,2703.3,2703.0,0.0011]
[1769815555243,13.81841504,2703.3,2703.2,0.0011]
[1769815555445,13.81841504,2703.3,2702.6,0.92503515]
[1769815557455,0.92581858,2703.3,2702.6,14.09882559]
[1769815558945,0.001,2703.3,2702.6,14.09882559]
[1769815560348,1.36118231,2703.3,2702.6,14.09882559]
[1769815561558,0.92482983,2703.2,2702.5,0.92614353]
[1769815561760,14.52465295,2703.2,2702.5,0.92614353]
[1769815563142,0.92482983,2703.2,2702.6,0.92503235]
[1769815564262,14.52465295,2703.2,2702.6,0.92503235]
[1769815564465,16.48314628,2703.2,2702.6,0.92503235]
[1769815565466,16.48314628,2703.2,2702.5,14.09993988]
[1769815566966,16.48314628,2703.2,2702.7,0.0011]
[1769815569065,12.63053988,2703.1,2702.5,0.0011]
[1769815569364,1.5513863,2703.0,2702.5,0.0011]
[1769815572466,13.55547235,2702.9,2702.5,0.0011]
[1769815580262,13.55547235,2702.9,2702.1,0.0011]
[1769815581062,13.7485542,2702.9,2702.1,0.0011]
[1769815583066,1.11801432,2702.9,2702.1,12.65550586]
[1769815583366,0.63701305,2702.8,2702.1,12.65550586]
[1769815583673,0.92500092,2702.7,2702.1,12.65550586]
[1769815583861,0.775,2702.6,2702.1,12.65550586]
[1769815586878,1.70006611,2702.6,2702.1,0.0011]
[1769815590957,12.63053988,2702.3,2701.8,1e-08]
[1769815591290,12.63053988,2702.0,2701.2,0.0011]
[1769815591458,12.63053988,2701.8,2701.2,0.0011]
[1769815591659,0.9253433,2701.7,2701.2,0.0011]
[1769815602400,14.71086107,2701.7,2701.2,0.0011]
[1769815603194,14.71086107,2701.7,2700.9,0.0011]
[1769815603395,15.6267412,2701.6,2700.9,0.0011]
[1769815604397,15.6267412,2701.6,2701.2,0.0011]
[1769815604597,0.001,2701.5,2701.2,0.0011]
[1769815604792,0.775,2701.4,2701.2,0.0011]
[1769815605171,0.775,2701.4,2700.9,0.0011]
[1769815605571,0.92548032,2701.3,2700.9,0.0011]
[1769815605771,1.83599904,2701.3,2700.9,0.0011]
[1769815614310,1.83599904,2701.3,2700.9,13.55726469]
[1769815615106,1.83599904,2701.3,2700.9,0.0011]
[1769815616507,1.83599904,2701.3,2701.1,0.0011]
[1769815617214,1.83599904,2701.3,2700.9,0.0011]
[1769815617408,0.92548032,2701.3,2700.9,0.0011]
[1769815620616,14.71099809,2701.3,2700.7,0.0011]
[1769815621683,13.78551777,2701.2,2700.7,0.0011]
[1769815621884,13.78551777,2701.2,2700.2,0.0011]
[1769815622091,13.78551777,2700.9,2700.2,0.0011]
[1769815622342,0.775,2700.8,2700.2,0.0011]
[1769815622630,14.71123798,2700.6,2700.0,0.0011]
[1769815625408,14.71123798,2700.6,2699.6,0.0011]
[1769815625611,13.78551777,2700.4,2699.6,0.0011]
[1769815625930,14.56051777,2700.3,2699.6,0.0011]
[1769815627322,14.63508304,2700.2,2699.6,0.0011]
[1769815628027,14.63508304,2700.2,2699.8,0.0011]
[1769815628224,14.63508304,2700.2,2699.6,0.0011]
[1769815628430,1.91135124,2700.1,2699.6,0.0011]
[1769815629334,0.92596022,2699.9,2699.6,0.0011]
[1769815629536,0.775,2699.8,2699.6,0.0011]
[1769815630414,1.70096022,2699.9,2699.6,0.0011]
[1769815636548,13.7092257,2699.2,2697.1,0.0123794]
[1769815636708,0.19311201,2697.8,2697.1,13.32722883]
[1769815636913,0.776,2697.7,2697.1,11.36427835]
[1769815637412,0.9267497,2697.6,2697.1,11.36427835]
[1769815637838,1.7027284,2697.7,2697.1,11.36427835]
[1769815639951,1.7027284,2697.7,2697.4,0.0011]
[1769815640145,1.7027284,2697.7,2697.1,10.78810391]
[1769815640650,17.34313375,2697.7,2696.5,13.31484943]
[1769815640846,3.63390805,2697.7,2696.7,14.24188669]
[1769815641247,3.63390805,2697.7,2696.9,0.92697031]
[1769815641448,1.7027284,2697.7,2697.0,13.31484943]
[1769815647169,0.9267284,2697.7,2697.0,13.31484943]
[1769815647345,0.776,2697.6,2697.0,13.31484943]
[1769815649360,1.70277828,2697.6,2697.0,13.31484943]
[1769815649859,1.70277828,2697.6,2696.9,0.92698413]
[1769815650937,1.70277828,2697.6,2696.8,14.24186171]
[1769815652264,15.41200398,2697.6,2696.8,14.24186171]
[1769815653557,15.41200398,2697.6,2696.6,13.31484943]
[1769815653763,15.41200398,2697.6,2696.1,5.50584186]
[1769815653764,13.7092257,2697.4,2696.4,14.24199658]
[1769815653946,13.7092257,2697.4,2696.8,0.0011]
[1769815655946,0.92685277,2697.3,2696.8,0.0011]
[1769815656440,14.63607847,2697.3,2696.3,13.31484943]
[1769815656643,13.45396222,2697.1,2696.1,13.64244928]
[1769815656837,1.83434896,2697.2,2696.1,13.64244928]
[1769815656838,14.22996222,2697.0,2696.1,12.71519096]
[1769815657046,14.22996222,2697.0,2696.1,0.0011]
[1769815657246,14.87695844,2696.9,2696.1,0.0011]
[1769815657441,14.87695844,2696.9,2696.1,12.71519096]
[1769815658260,0.92702462,2696.8,2696.1,13.64245423]
[1769815659238,0.92702462,2696.8,2696.1,13.64243831]
[1769815662567,15.63307819,2696.9,2696.1,13.64243831]
[1769815662768,17.56717222,2696.9,2696.1,13.64243831]
[1769815665941,17.56717222,2696.9,2696.3,0.0011]
[1769815666841,0.776,2697.0,2696.3,13.77249764]
[1769815667069,14.70606592,2697.0,2696.3,0.0011]
[1769815668853,0.92699024,2696.9,2696.3,0.0011]
[1769815671278,0.92699024,2696.9,2696.3,13.77249764]
[1769815673579,17.63790234,2697.0,2696.3,13.77249764]
[1769815675173,13.93006592,2696.9,2696.3,0.0011]
[1769815675744,14.85707803,2696.9,2696.3,0.0011]
[1769815677486,16.79116948,2696.9,2696.3,0.0011]
[1769815678469,16.79116948,2696.9,2696.5,0.0011]
[1769815678664,0.001,2696.8,2696.5,0.0011]
[1769815686017,13.93106592,2696.8,2696.5,0.0011]
[1769815687483,0.92705899,2696.7,2696.5,0.0011]
[1769815691814,14.85811335,2696.8,2696.5,0.0011]
[1769815696327,16.98583935,2696.8,2696.5,0.0011]
[1769815696923,16.98583935,2696.8,2696.3,0.0011]
[1769815702534,16.98583935,2696.8,2696.1,0.0011]
[1769815705735,3.97238656,2696.8,2696.1,0.0011]
[1769815705940,13.72090915,2696.7,2696.1,0.0011]
[1769815706143,13.72090915,2696.5,2696.1,0.0011]
[1769815707906,0.92716214,2696.4,2696.1,0.0011]
[1769815712513,0.777,2696.3,2696.1,0.0011]
[1769815712715,0.777,2696.3,2695.3,0.92754053]
[1769815712716,0.1932,2694.5,2693.5,12.80843698]
[1769815712948,0.777,2694.4,2693.6,12.73897674]
[1769815714336,0.92788479,2694.3,2693.6,12.73897674]
[1769815715118,0.92788479,2694.3,2693.6,12.63897674]
[1769815716250,14.64879394,2694.3,2693.6,0.0011]
[1769815716547,15.63463578,2694.2,2693.6,0.0011]
[1769815717247,15.63463578,2694.2,2693.1,14.2958053]
[1769815717248,12.84591518,2694.1,2693.1,14.2958053]
[1769815717430,15.19166784,2694.1,2693.3,13.36752648]
[1769815718126,15.19166784,2694.1,2693.1,13.74300253]
[1769815718326,0.92798812,2694.0,2693.2,14.67125025]
[1769815718531,2.4471549,2694.0,2693.2,14.67125025]
[1769815718751,15.49048062,2694.0,2693.2,13.74300253]
[1769815719133,15.49048062,2694.0,2693.0,14.79297073]
[1769815719327,15.04125869,2693.9,2693.0,14.79297073]
[1769815719545,15.04125869,2693.9,2693.0,14.7929899]
[1769815720228,15.04125869,2693.9,2693.1,14.67129139]
[1769815720441,0.777,2693.8,2693.1,14.67129139]
[1769815721530,1.70505911,2693.8,2693.1,14.67129139]
[1769815723258,0.92805911,2693.8,2693.1,14.67129139]
[1769815723562,1.70505911,2693.8,2693.1,14.67129139]
[1769815724428,14.74838483,2693.8,2693.1,0.92828886]
[1769815725628,14.74838483,2693.8,2693.0,14.79297432]
[1769815725875,14.74838483,2693.8,2693.3,0.0011]
[1769815726059,2.04584311,2693.7,2693.3,0.0011]
[1769815727132,2.82284311,2693.7,2693.3,0.0011]
[1769815727564,13.97145164,2693.6,2693.3,0.0011]
[1769815728367,0.001,2694.1,2693.3,0.0011]
[1769815728569,13.97131384,2694.0,2693.3,0.0011]
[1769815728772,0.92798812,2694.0,2693.3,0.0011]
[1769815728973,4.64061313,2693.9,2693.3,0.0011]
[1769815734785,0.92805701,2693.8,2693.3,0.0011]
[1769815735296,5.56867014,2693.8,2693.3,0.0011]
[1769815738094,5.56867014,2693.8,2693.5,0.0011]
[1769815738300,0.001,2693.7,2693.5,0.0011]
[1769815743010,0.001,2693.7,2693.3,0.0011]
[1769815744804,0.92801856,2694.0,2693.3,13.74410253]
[1769815745314,0.001,2694.1,2693.3,13.74410253]
[1769815745525,2.11595566,2694.4,2693.4,13.74300253]
[1769815745697,4.64061313,2694.3,2693.4,13.74300253]
[1769815746211,1.18810253,2694.4,2693.4,13.74300253]
[1769815746522,5.51028432,2695.0,2693.4,13.74300253]
[1769815746523,17.32142085,2695.1,2694.0,13.74300253]
[1769815746683,21.18503398,2695.1,2694.0,13.74300253]
[1769815746875,21.96203398,2695.1,2694.0,13.74300253]
[1769815747081,21.96203398,2695.1,2693.9,12.98042893]
[1769815747375,21.18503398,2695.1,2693.9,12.98042893]
[1769815747775,21.96203398,2695.1,2693.9,12.98042893]
[1769815748591,21.96203398,2695.1,2694.1,12.98042893]
[1769815749101,18.40211516,2695.1,2694.1,12.98042893]
[1769815749317,5.56822249,2695.1,2694.1,12.98042893]
[1769815749678,18.40211516,2695.1,2694.1,12.98042893]
[1769815750702,18.40211516,2695.1,2694.2,13.90834816]
[1769815755801,4.64061313,2695.0,2694.2,13.90834816]
[1769815756725,17.4745058,2695.0,2694.2,13.90834816]
[1769815758238,5.56829094,2695.0,2694.2,13.90834816]
[1769815759948,0.92767781,2695.0,2694.2,13.90834816]
[1769815760250,4.64061313,2694.9,2694.2,13.90834816]
[1769815762749,0.001,2694.7,2694.2,13.90834816]
[1769815763247,4.64061313,2694.9,2694.2,13.90834816]
[1769815763248,13.76129557,2695.7,2694.6,12.98042893]
[1769815763548,17.4745058,2695.6,2694.6,12.98042893]
[1769815763749,4.64061313,2695.6,2694.6,12.98042893]
[1769815764643,4.64061313,2695.6,2694.8,12.98042893]
[1769815765044,5.56805477,2695.6,2694.8,12.98042893]
[1769815765536,9.50218375,2696.4,2694.9,12.98042893]
[1769815765537,0.92723091,2696.2,2694.9,12.98042893]
[1769815765713,13.76112358,2696.2,2695.0,12.98042893]
[1769815765919,12.83389267,2696.0,2695.0,12.98042893]
[1769815766332,17.4745058,2695.9,2695.0,12.98042893]
[1769815766551,4.64061313,2695.8,2695.0,12.98042893]
[1769815766754,4.64061313,2695.8,2695.2,0.92757494]
[1769815767056,4.64061313,2695.8,2695.2,13.90800387]
[1769815769556,17.4745058,2695.8,2695.2,0.92757494]
[1769815770653,12.83389267,2696.2,2695.4,9.27531546]
[1769815770951,12.83389267,2696.2,2695.2,0.92757494]
[1769815771155,12.83389267,2696.0,2694.9,12.9860044]
[1769815771522,12.83389267,2696.0,2695.0,9.27531546]
[1769815774230,12.83389267,2696.0,2695.1,0.92760936]
[1769815775154,0.001,2695.8,2695.1,0.92760936]
[1769815776057,0.001,2695.8,2695.1,10.20292482]
[1769815779666,14.15404105,2696.4,2695.2,9.27431546]
[1769815779960,14.15404105,2696.4,2695.4,9.27431546]
[1769815781644,14.15404105,2696.4,2695.5,0.92747171]
[1769815781829,14.15404105,2696.4,2695.5,10.20178717]
[1769815783163,14.15404619,2696.4,2695.5,10.20178717]
[1769815783376,14.15404619,2696.4,2695.6,0.54043259]
[1769815787281,14.15404619,2696.4,2695.7,0.9274029]
[1769815787483,0.001,2696.2,2695.7,0.9274029]
[1769815800215,0.001,2696.0,2695.7,0.9274029]
[1769815803618,0.001,2696.6,2695.7,10.20171836]
[1769815803823,0.001,2696.6,2695.8,10.29450794]
[1769815804531,0.001,2696.6,2695.9,0.92733409]
[1769815805048,0.001,2696.6,2695.9,10.20164955]
[1769815808429,13.03806054,2696.6,2695.9,0.92733409]
[1769815811227,0.001,2696.6,2695.9,10.20164955]
[1769815811428,0.001,2696.6,2696.0,0.54043259]
[1769815812223,0.001,2696.6,2696.1,0.0011]
[1769815812422,0.001,2696.6,2696.1,9.27541546]
[1769815812755,13.03706054,2697.4,2696.4,9.27331546]
[1769815812942,0.001,2697.5,2696.6,10.20040883]
[1769815814054,13.03806054,2697.5,2696.6,10.20040883]
[1769815814255,13.9648493,2697.5,2696.6,10.20040883]
[1769815814436,13.03706054,2697.4,2696.6,10.20040883]
[1769815821099,0.001,2697.5,2696.6,10.20040883]
[1769815821472,0.001,2697.5,2696.9,9.27331546]
[1769815821863,0.001,2697.5,2697.0,10.04931546]
[1769815822585,13.03706054,2697.8,2697.0,10.04931546]
[1769815823578,13.03706054,2697.8,2697.1,0.9269215]
[1769815823778,13.03706054,2697.8,2697.1,1.56021502]
[1769815826003,13.03706054,2698.1,2697.2,14.77597751]
[1769815827078,13.03706054,2698.1,2697.1,1.56021502]
[1769815832623,13.03706054,2698.1,2697.1,10.83353048]
[1769815838122,0.001,2697.9,2697.1,10.83353048]
[1769815838326,0.001,2697.9,2697.2,0.92733155]
[1769815840927,13.46380721,2697.9,2697.3,0.92685277]
[1769815842236,0.001,2697.9,2697.3,0.92685277]
[1769815843939,13.46380721,2697.9,2697.3,0.92685277]
[1769815844135,13.46380721,2697.9,2697.4,0.63329352]
[1769815846135,13.46380721,2697.9,2697.5,0.92678405]
[1769815849739,13.46280721,2697.8,2696.4,0.92714002]
[1769815849940,13.46280721,2697.5,2696.3,0.92716689]
[1769815850838,14.38962562,2697.4,2697.3,0.0011]
[1769815851035,14.38962562,2697.4,2697.0,0.0011]
[1769815851339,13.46280721,2697.2,2696.1,0.9283653]
[1769815854130,13.46280721,2696.1,2695.0,0.0011]
[1769815854440,13.46280721,2695.5,2694.4,0.0011]
[1769815854658,13.46280721,2695.0,2694.4,0.0011]
[1769815855425,13.46280721,2695.0,2694.4,0.92894423]
[1769815856246,13.46280721,2695.0,2694.4,0.0011]
[1769815856446,13.46280721,2695.0,2694.4,0.37237707]
[1769815857845,14.39046434,2695.0,2694.4,0.16957497]
[1769815858047,14.39046434,2695.0,2694.2,0.92791923]
[1769815858227,14.39046434,2695.0,2694.1,0.0011]
[1769815858937,13.46280721,2695.0,2694.1,0.0011]
[1769815859255,14.39045396,2695.0,2694.1,0.0011]
[1769815863748,14.39045396,2695.0,2694.3,0.0011]
[1769815865270,14.39045396,2695.0,2693.6,0.7771]
[1769815865565,14.39045396,2695.0,2693.6,1.70522202]
[1769815866060,14.39045396,2695.0,2693.6,0.92922202]
[1769815866226,13.46280721,2694.8,2693.7,0.92809136]
[1769815867087,13.66952102,2694.6,2693.6,0.0011]
[1769815869549,0.92774705,2694.7,2693.6,0.0011]
[1769815869550,13.66952102,2694.4,2693.6,0.0011]
[1769815870843,13.66952102,2694.4,2693.6,13.34497773]
[1769815871746,13.66952102,2694.4,2693.7,0.92809147]
[1769815872375,13.66952102,2694.9,2693.7,14.2719692]
[1769815875388,14.5972225,2694.9,2693.8,0.0011]
[1769815875590,16.4280017,2694.9,2693.8,13.34497773]